bitfinex/quotes_SOLUSD_20250704
["timestamp","ask_amount","ask_price","bid_price","bid_amount"]
[1751605284799,0.2,151.87,151.86,88.40012358]
[1751605285662,0.2,151.87,151.86,94.98513609]
[1751605287675,0.2,151.87,151.86,134.56513609]
[1751605287982,0.2,151.87,151.86,94.98513609]
[1751605289171,0.2,151.87,151.86,98.2800138]
[1751605292195,0.2,151.87,151.86,92.11895753]
[1751605293201,0.2,151.87,151.86,92.11895753]
[1751605294096,0.2,151.87,151.86,98.27568965]
[1751605294286,0.2,151.87,151.86,92.11895753]
[1751605298075,0.2,151.87,151.86,98.27556615]
[1751605303300,0.2,151.89,151.87,18.933972]
[1751605303505,0.2,151.89,151.88,82.23906731]
[1751605303722,0.2,151.89,151.88,55.52321268]
[1751605304085,0.2,151.89,151.88,51.51811737]
[1751605304493,0.2,151.89,151.88,55.52321268]
[1751605306702,4.20509531,151.89,151.88,18.64964886]
[1751605306902,18.7828072,151.89,151.84,0.1]
[1751605307087,4.00509531,151.87,151.84,0.1]
[1751605307286,4.00509531,151.87,151.85,18.64964886]
[1751605309427,14.77771189,151.89,151.85,6.58542387]
[1751605309428,4.00509531,151.88,151.85,6.58542387]
[1751605310220,4.00509531,151.88,151.84,29.34047495]
[1751605310793,4.00509531,151.88,151.84,22.75474417]
[1751605313323,10.58928164,151.88,151.84,22.75474417]
[1751605313537,4.00509531,151.87,151.84,18.74964886]
[1751605313999,6.58418633,151.88,151.84,0.1]
[1751605314000,4.00509531,151.85,151.84,0.1]
[1751605314337,14.77786446,151.89,151.84,0.1]
[1751605314502,14.77786446,151.89,151.84,18.74964886]
[1751605314503,4.00509531,151.87,151.84,18.74964886]
[1751605318025,4.00509531,151.88,151.84,29.34055043]
[1751605318225,8.194,151.89,151.86,18.64964886]
[1751605318400,12.19909531,151.89,151.86,18.64964886]
[1751605318917,4.00509531,151.88,151.85,18.64964886]
[1751605321326,10.58925659,151.88,151.85,18.64964886]
[1751605322005,4.00509531,151.88,151.85,18.64964886]
[1751605326926,10.58926843,151.88,151.85,18.64964886]
[1751605327227,4.00509531,151.87,151.84,19.033972]
[1751605328841,4.00509531,151.86,151.84,0.1]
[1751605329805,6.5846128,151.87,151.84,0.1]
[1751605330009,4.00509531,151.86,151.84,0.1]
[1751605330516,4.00509531,151.85,151.84,0.1]
[1751605333114,10.59054147,151.85,151.84,0.1]
[1751605340834,6.58457891,151.87,151.84,0.1]
[1751605341035,4.00509531,151.85,151.84,0.1]
[1751605342048,6.58457891,151.87,151.84,0.1]
[1751605342229,4.00509531,151.85,151.84,0.1]
[1751605345228,6.58532194,151.86,151.84,0.1]
[1751605345534,4.00509531,151.85,151.84,0.1]
[1751605345741,10.59054147,151.85,151.84,0.1]
[1751605350333,10.59054147,151.85,151.81,0.1]
[1751605350334,1.5648,151.84,151.81,0.1]
[1751605350539,4.00509531,151.82,151.81,0.1]
[1751605352333,10.59184277,151.82,151.81,0.1]
[1751605356551,4.00509531,151.82,151.81,0.1]
[1751605356754,10.59184277,151.82,151.81,0.1]
[1751605365148,6.58674746,151.82,151.81,0.1]
[1751605365348,10.59184277,151.82,151.81,0.1]
[1751605365860,12.845993,151.82,151.81,0.1]
[1751605374790,12.845993,151.82,151.81,1e-08]
[1751605385924,10.59357548,151.82,151.81,1e-08]
[1751605395402,10.49477101,151.82,151.81,1e-08]
[1751605395729,6.58631364,151.83,151.81,1e-08]
[1751605395900,4.00682802,151.82,151.81,1e-08]
[1751605398426,6.58631364,151.83,151.81,1e-08]
[1751605398723,4.00682802,151.83,151.81,1e-08]
[1751605399122,0.2,151.84,151.81,1e-08]
[1751605399305,4.20682802,151.84,151.81,1e-08]
[1751605400023,0.2,151.84,151.81,4.00682803]
[1751605400228,0.2,151.84,151.82,4.00682802]
[1751605400409,0.2,151.84,151.83,24.30377688]
[1751605400601,0.2,151.84,151.83,57.17441366]
[1751605400801,0.2,151.88,151.85,0.28432314]
[1751605401022,0.2,151.88,151.87,22.65647688]
[1751605401209,0.2,151.88,151.87,18.64964886]
[1751605401515,0.2,151.88,151.87,22.65647688]
[1751605401924,0.2,151.88,151.87,24.89848471]
[1751605402806,0.2,151.88,151.87,31.48306362]
[1751605403007,0.2,151.88,151.87,31.76738676]
[1751605404936,0.2,151.88,151.87,39.86918676]
[1751605416116,0.2,151.89,151.88,44.933972]
[1751605416320,0.2,151.89,151.88,51.18280785]
[1751605416518,0.2,151.9,151.89,44.933972]
[1751605416817,1e-08,151.9,151.89,51.18280785]
[1751605417143,0.2,151.92,151.9,18.933972]
[1751605417441,0.2,151.92,151.91,57.48132981]
[1751605419520,0.2,151.92,151.91,57.76565295]
[1751605421846,1e-08,151.92,151.91,38.0144888]
[1751605422035,0.2,151.96,151.93,44.933972]
[1751605422343,1e-08,151.96,151.94,18.933972]
[1751605422523,1e-08,151.96,151.95,58.44280785]
[1751605422724,1e-08,151.96,151.95,65.02392005]
[1751605423348,0.2,151.99,151.98,44.64964886]
[1751605423520,0.2,151.99,151.98,51.18280785]
[1751605424839,0.2,151.99,151.98,57.76262098]
[1751605427339,1e-08,151.99,151.98,64.01145683]
[1751605427523,1e-08,151.99,151.98,71.92205683]
[1751605428534,1e-08,151.99,151.98,65.67322098]
[1751605432748,0.2,152.03,152.02,44.64964886]
[1751605433064,0.2,152.03,152.02,51.18280785]
[1751605433634,1e-08,152.03,152.02,51.18280785]
[1751605434239,1e-08,152.03,152.02,57.76088968]
[1751605436459,0.2,152.04,152.03,25.18280785]
[1751605436656,0.2,152.04,152.03,65.24280785]
[1751605437031,0.2,152.06,152.05,44.64964886]
[1751605437354,0.2,152.06,152.05,84.15848471]
[1751605438849,0.2,152.06,152.05,90.73526866]
[1751605440433,0.2,152.06,152.05,18.64964886]
[1751605440644,6.44883585,152.06,152.05,44.64964886]
[1751605440855,0.2,152.06,152.05,44.64964886]
[1751605441163,0.2,152.06,152.05,50.89848471]
[1751605441663,0.2,152.06,152.05,57.7595918]
[1751605442765,0.2,152.06,152.05,18.64964886]
[1751605442939,6.44883585,152.06,152.05,18.64964886]
[1751605443246,0.2,152.06,152.05,18.64964886]
[1751605443667,6.14883585,152.07,152.05,18.64964886]
[1751605443868,6.24883585,152.07,152.05,18.64964886]
[1751605444250,16.63586927,152.11,152.06,18.64964886]
[1751605444251,0.2,152.11,152.06,18.64964886]
[1751605444455,0.2,152.11,152.08,6.24883585]
[1751605445066,0.2,152.11,152.08,12.82419098]
[1751605445244,6.44883585,152.11,152.09,18.64964886]
[1751605445642,13.02311061,152.11,152.08,18.64964886]
[1751605446776,6.24883585,152.09,152.03,18.64964886]
[1751605447070,6.24883585,152.05,152.03,26.0]
[1751605447251,1.5168,152.1,152.04,18.64964886]
[1751605447446,1.5168,152.1,152.04,24.89848471]
[1751605447447,6.24883585,152.08,152.04,24.89848471]
[1751605448773,6.24883585,152.09,152.04,31.47566504]
[1751605448957,14.34038469,152.1,152.05,6.24883585]
[1751605450281,8.09154884,152.1,152.05,6.24883585]
[1751605450450,6.24883585,152.09,152.05,6.24883585]
[1751605453268,12.8240733,152.09,152.04,25.22682919]
[1751605453584,6.24883585,152.08,152.04,31.47566504]
[1751605455884,6.24883585,152.08,152.04,25.22682919]
[1751605456183,6.24883585,152.06,152.04,18.64964886]
[1751605456367,6.24883585,152.07,152.04,18.64964886]
[1751605456567,6.24883585,152.05,152.04,18.64964886]
[1751605456765,6.24883585,152.05,151.97,31.89848471]
[1751605456967,6.24883585,152.01,151.97,31.89848471]
[1751605457169,6.237,152.06,151.97,31.89848471]
[1751605457380,6.24883585,152.01,151.99,18.64964886]
[1751605459187,6.24883585,152.02,151.99,25.22901591]
[1751605459384,12.81353048,152.06,151.99,25.22901591]
[1751605459562,6.24883585,152.04,152.01,25.22807412]
[1751605460686,6.24883585,152.04,152.01,18.64964886]
[1751605460862,6.24883585,152.03,152.01,18.64964886]
[1751605461863,6.24883585,152.02,152.0,0.2]
[1751605462067,6.24883585,152.01,152.0,0.2]
[1751605473475,6.24883585,152.02,152.0,0.2]
[1751605473903,6.24883585,152.02,152.0,18.84964886]
[1751605475207,6.24883585,152.03,152.0,6.77891846]
[1751605475383,6.24883585,152.03,152.0,0.2]
[1751605476201,6.24883585,152.04,152.0,13.0277029]
[1751605480200,6.24883585,152.03,152.0,6.77886705]
[1751605480389,6.24883585,152.03,152.0,0.2]
[1751605482701,6.57787118,152.03,152.0,0.2]
[1751605483304,6.24883585,152.01,152.0,0.2]
[1751605485013,12.82735042,152.01,152.0,0.2]
[1751605489512,6.57808183,152.02,152.0,0.2]
[1751605489712,6.24883585,152.01,152.0,0.2]
[1751605492012,6.337,152.06,152.0,18.84964886]
[1751605492192,6.24883585,152.03,152.0,18.84964886]
[1751605495714,6.34883585,152.03,152.0,18.84964886]
[1751605496112,0.1,152.03,152.02,18.64964886]
[1751605496412,0.1,152.03,152.02,24.89848471]
[1751605497610,0.1,152.03,152.02,18.64964886]
[1751605498801,0.1,152.03,152.02,25.22773069]
[1751605498998,0.1,152.03,152.02,31.47656654]
[1751605500823,0.1,152.03,152.02,31.76088968]
[1751605502136,0.1,152.03,152.02,37.89562274]
[1751605502499,1e-08,152.03,152.02,31.76088968]
[1751605503925,0.1,152.06,152.05,50.89848471]
[1751605504097,0.1,152.06,152.05,57.47526866]
[1751605505125,0.1,152.06,152.05,57.7595918]
[1751605507632,1e-08,152.06,152.05,62.98169864]
[1751605507826,1e-08,152.06,152.05,57.7595918]
[1751605509228,1e-08,152.08,152.07,1.6213]
[1751605509428,1e-08,152.08,152.07,33.0529437]
[1751605511228,1e-08,152.08,152.07,39.62886268]
[1751605512105,1e-08,152.08,152.07,33.38002683]
[1751605517114,1e-08,152.08,152.07,39.62886268]
[1751605517505,1e-08,152.08,152.07,33.38002683]
[1751605518524,1e-08,152.08,152.07,66.78002683]
[1751605518922,0.1,152.1,152.09,18.64964886]
[1751605519137,0.1,152.1,152.09,51.04064628]
[1751605520037,0.1,152.1,152.09,57.61570052]
[1751605522035,0.1,152.1,152.09,57.75786209]
[1751605526849,0.1,152.1,152.09,18.64964886]
[1751605530525,6.34883585,152.1,152.09,18.64964886]
[1751605531832,0.1,152.1,152.09,18.64964886]
[1751605536929,0.1,152.1,152.09,31.47353895]
[1751605537454,0.1,152.1,152.09,18.64964886]
[1751605538526,6.34883585,152.1,152.09,18.64964886]
[1751605544454,0.1,152.1,152.09,18.64964886]
[1751605549260,0.1,152.1,152.09,31.47353895]
[1751605549454,0.1,152.1,152.09,24.89848471]
[1751605549660,0.1,152.1,152.09,31.47353895]
[1751605555867,0.1,152.1,152.09,25.2247031]
[1751605556156,0.1,152.1,152.09,18.64964886]
[1751605556463,0.1,152.1,152.09,25.2247031]
[1751605556650,0.1,152.1,152.09,18.64964886]
[1751605558265,6.34883585,152.1,152.08,0.2]
[1751605558443,8.27442195,152.1,152.08,0.2]
[1751605558953,6.24883585,152.09,152.08,0.2]
[1751605560454,12.82389009,152.09,152.08,0.2]
[1751605560657,8.27459762,152.1,152.08,0.2]
[1751605561061,0.1,152.1,152.08,0.2]
[1751605561461,0.1,152.1,152.08,18.84964886]
[1751605566455,6.34883585,152.1,152.08,0.2]
[1751605569287,12.92355917,152.1,152.08,0.2]
[1751605569466,6.24883585,152.09,152.08,0.2]
[1751605572054,0.1,152.1,152.09,18.64964886]
[1751605572779,0.1,152.1,152.08,0.2]
[1751605573875,6.24883585,152.09,152.08,0.2]
[1751605576085,0.1,152.1,152.08,0.2]
[1751605576576,6.34883585,152.1,152.08,0.2]
[1751605576784,0.1,152.1,152.09,24.89848471]
[1751605578071,0.1,152.1,152.09,31.47353895]
[1751605579986,0.1,152.1,152.09,24.89848471]
[1751605580885,0.1,152.1,152.09,31.47353895]
[1751605582764,0.1,152.1,152.09,25.2247031]
[1751605582989,0.1,152.1,152.09,31.47353895]
[1751605585892,0.1,152.1,152.09,25.2247031]
[1751605586193,0.1,152.1,152.09,31.47353895]
[1751605592793,0.1,152.1,152.09,31.75786209]
[1751605594787,0.1,152.1,152.09,25.2247031]
[1751605594977,0.1,152.1,152.09,31.47353895]
[1751605597107,0.1,152.1,152.09,25.2247031]
[1751605597282,6.34883585,152.1,152.08,0.2]
[1751605597605,6.24883585,152.09,152.08,0.2]
[1751605599418,6.34883585,152.1,152.08,0.2]
[1751605603718,0.1,152.1,152.09,18.64964886]
[1751605605618,0.1,152.1,152.08,0.2]
[1751605606815,0.1,152.1,152.09,18.64964886]
[1751605607318,0.1,152.1,152.08,0.2]
[1751605608020,0.1,152.1,152.08,25.42504146]
[1751605610105,0.1,152.1,152.08,18.84964886]
[1751605610424,6.24883585,152.09,152.08,0.2]
[1751605611721,12.82389009,152.09,152.08,0.2]
[1751605613525,6.24883585,152.09,152.08,0.2]
[1751605613709,0.1,152.1,152.08,0.2]
[1751605613909,6.24883585,152.09,152.08,0.2]
[1751605614400,6.34883585,152.1,152.08,0.2]
[1751605614622,0.1,152.1,152.08,0.2]
[1751605615326,0.1,152.1,152.09,18.64964886]
[1751605618305,6.34883585,152.1,152.09,18.64964886]
[1751605620728,0.1,152.1,152.09,18.64964886]
[1751605620928,6.34883585,152.1,152.09,18.64964886]
[1751605621929,0.1,152.1,152.09,18.64964886]
[1751605622633,6.34883585,152.1,152.08,18.84964886]
[1751605622930,0.1,152.1,152.08,18.84964886]
[1751605623130,6.34883585,152.1,152.08,18.84964886]
[1751605626037,6.34883585,152.1,152.08,0.2]
[1751605628444,6.24883585,152.09,152.08,0.2]
[1751605628622,14.25913585,152.09,152.08,0.2]
[1751605628815,20.5079717,152.09,152.08,0.2]
[1751605629418,14.25913585,152.09,152.08,0.2]
[1751605630538,20.83419009,152.09,152.08,0.2]
[1751605632137,14.58535424,152.09,152.08,0.2]
[1751605632337,20.83419009,152.09,152.08,0.2]
[1751605632542,14.41629009,152.09,152.08,0.2]
[1751605632711,6.57505424,152.09,152.08,0.2]
[1751605633039,6.24883585,152.09,152.08,0.2]
[1751605635831,12.82389009,152.09,152.08,0.2]
[1751605642453,0.1,152.1,152.09,6.57505424]
[1751605642660,0.1,152.1,152.09,24.89848471]
[1751605644840,0.1,152.1,152.09,18.64964886]
[1751605647846,0.1,152.1,152.09,24.89848471]
[1751605650571,0.1,152.1,152.09,31.47353895]
[1751605651028,0.1,152.1,152.09,31.61570052]
[1751605651234,0.1,152.1,152.09,57.75786209]
[1751605658862,0.1,152.1,152.09,91.03786209]
[1751605659243,1e-08,152.1,152.09,65.03786209]
[1751605659666,0.1,152.14,152.13,18.933972]
[1751605659972,0.1,152.14,152.13,25.18280785]
[1751605660369,0.1,152.14,152.13,58.46280785]
[1751605661458,0.1,152.14,152.13,65.03613329]
[1751605662176,0.1,152.14,152.13,70.29084382]
[1751605664772,1e-08,152.14,152.13,70.29084382]
[1751605667164,1e-08,152.15,152.14,0.28432314]
[1751605667357,1e-08,152.15,152.14,31.4316437]
[1751605667556,1e-08,152.15,152.14,25.18280785]
[1751605669277,1e-08,152.15,152.14,31.75570123]
[1751605671070,1.5025,152.31,152.19,18.64964886]
[1751605671269,1.5025,152.31,152.27,18.64964886]
[1751605672357,1.5025,152.31,152.3,24.89848471]
[1751605672675,6.3436,152.32,152.31,18.64964886]
[1751605672971,12.59243585,152.32,152.28,24.89848471]
[1751605673172,6.3436,152.32,152.29,6.24883585]
[1751605673477,6.3436,152.32,152.28,18.64964886]
[1751605673478,7.74963585,152.35,152.3,24.89848471]
[1751605673778,6.24883585,152.34,152.3,24.89848471]
[1751605674486,6.24883585,152.34,152.3,18.64964886]
[1751605675173,8.06472648,152.35,152.3,18.64964886]
[1751605675174,6.24883585,152.33,152.3,18.64964886]
[1751605676173,8.06472648,152.35,152.3,18.64964886]
[1751605676375,6.24883585,152.33,152.3,18.64964886]
[1751605676685,8.06472648,152.35,152.3,25.21557214]
[1751605676886,6.24883585,152.33,152.3,25.21557214]
[1751605677662,6.24883585,152.34,152.3,25.21557214]
[1751605678581,6.24883585,152.34,152.3,31.46440799]
[1751605679263,1.5008,152.35,152.3,31.46440799]
[1751605679470,7.74963585,152.35,152.3,31.46440799]
[1751605679679,1.5008,152.35,152.3,31.46440799]
[1751605679968,6.34883585,152.34,152.3,31.46440799]
[1751605681183,0.1,152.34,152.31,6.24883585]
[1751605681585,0.1,152.34,152.33,18.64964886]
[1751605682482,0.1,152.34,152.33,24.89848471]
[1751605683579,0.1,152.34,152.33,31.46317977]
[1751605683994,0.1,152.34,152.33,25.21434392]
[1751605684792,0.1,152.34,152.33,31.46317977]
[1751605685684,0.1,152.34,152.33,38.32317977]
[1751605686188,0.1,152.34,152.33,38.60750291]
[1751605687081,1e-08,152.34,152.33,45.19940291]
[1751605689089,1.5137,152.43,152.37,18.64964886]
[1751605689308,6.24883585,152.44,152.39,18.64964886]
[1751605689469,6.24883585,152.45,152.42,18.64964886]
[1751605689666,6.24883585,152.46,152.44,18.64964886]
[1751605690270,1.518,152.47,152.44,18.64964886]
[1751605690472,6.24883585,152.49,152.44,24.89848471]
[1751605690684,6.24883585,152.49,152.43,6.56038837]
[1751605690685,6.24883585,152.49,152.46,18.64964886]
[1751605691086,6.24883585,152.49,152.45,18.64964886]
[1751605691277,6.24883585,152.49,152.44,24.89848471]
[1751605691484,6.24883585,152.49,152.45,18.64964886]
[1751605692274,6.24883585,152.5,152.46,18.64964886]
[1751605692614,6.24883585,152.48,152.45,18.64964886]
[1751605693480,6.24883585,152.49,152.45,18.64964886]
[1751605693703,6.55787619,152.49,152.45,18.64964886]
[1751605693996,12.80671204,152.49,152.45,18.64964886]
[1751605694193,6.24883585,152.48,152.45,18.64964886]
[1751605694892,6.55787619,152.49,152.45,18.64964886]
[1751605695496,6.24883585,152.48,152.45,18.64964886]
[1751605697102,6.34883585,152.48,152.45,18.64964886]
[1751605697397,0.1,152.48,152.45,18.64964886]
[1751605697698,6.34883585,152.48,152.45,18.64964886]
[1751605698202,12.90713139,152.48,152.45,18.64964886]
[1751605699104,6.34883585,152.48,152.45,18.64964886]
[1751605700719,6.24883585,152.46,152.38,17.91427796]
[1751605700880,6.24883585,152.43,152.42,18.64964886]
[1751605702706,22.74442871,152.48,152.47,44.64964886]
[1751605702707,0.1,152.48,152.47,44.64964886]
[1751605702879,6.0159,152.55,152.52,18.64964886]
[1751605703389,6.24883585,152.56,152.52,18.64964886]
[1751605703778,6.24883585,152.55,152.52,18.64964886]
[1751605705709,6.55450259,152.57,152.52,18.64964886]
[1751605706378,6.24883585,152.55,152.52,18.64964886]
[1751605707080,6.24883585,152.55,152.52,25.20607869]
[1751605707536,6.24883585,152.55,152.52,18.64964886]
[1751605707899,6.24883585,152.56,152.52,25.20614607]
[1751605708400,8.09629321,152.58,152.52,25.20614607]
[1751605708782,6.24883585,152.56,152.52,25.20614607]
[1751605709401,1.5664,152.63,152.52,25.20614607]
[1751605709601,6.24883585,152.61,152.56,18.64964886]
[1751605709810,7.9154,152.63,152.56,18.64964886]
[1751605709811,6.24883585,152.6,152.56,18.64964886]
[1751605710178,14.46730402,152.63,152.56,18.64964886]
[1751605710412,6.24883585,152.6,152.56,18.64964886]
[1751605710584,14.46730402,152.63,152.56,18.64964886]
[1751605710786,6.24883585,152.59,152.56,18.64964886]
[1751605710984,6.24883585,152.58,152.56,18.64964886]
[1751605711311,6.24883585,152.59,152.56,25.20441814]
[1751605711494,6.24883585,152.59,152.56,18.64964886]
[1751605711920,6.55234348,152.62,152.56,18.64964886]
[1751605712089,6.24883585,152.59,152.56,18.64964886]
[1751605713217,6.24883585,152.57,152.54,18.64964886]
[1751605713389,6.24883585,152.55,152.53,18.64964886]
[1751605714230,0.28432314,152.61,152.53,18.64964886]
[1751605714433,6.24883585,152.56,152.53,18.64964886]
[1751605716021,6.24883585,152.55,152.53,18.64964886]
[1751605717129,6.24883585,152.54,152.53,18.64964886]
[1751605717354,6.24883585,152.54,152.5,18.64964886]
[1751605717526,6.24883585,152.52,152.5,18.64964886]
[1751605718202,6.24883585,152.52,152.5,6.55713942]
[1751605719526,6.24883585,152.53,152.5,6.55713942]
[1751605719819,6.24883585,152.54,152.5,6.55713942]
[1751605721705,6.24883585,152.53,152.5,6.55713942]
[1751605721911,6.24883585,152.54,152.5,6.55713942]
[1751605723916,6.55502595,152.56,152.5,6.55713942]
[1751605724126,6.24883585,152.53,152.5,6.55713942]
[1751605725327,6.55525762,152.55,152.5,6.55713942]
[1751605725531,6.24883585,152.53,152.5,6.55713942]
[1751605726238,6.24883585,152.53,152.49,25.20729553]
[1751605727140,6.24883585,152.5,152.49,18.64964886]
[1751605730406,6.24883585,152.5,152.47,18.64964886]
[1751605730629,6.24883585,152.48,152.47,18.64964886]
[1751605732027,6.24883585,152.49,152.47,18.64964886]
[1751605732412,6.55656471,152.52,152.47,25.2081608]
[1751605732618,6.24883585,152.56,152.47,31.45699665]
[1751605732914,6.24883585,152.52,152.47,31.65699665]
[1751605733232,6.34883585,152.53,152.49,18.64964886]
[1751605733426,6.34883585,152.53,152.5,6.55737704]
[1751605733631,6.34883585,152.53,152.49,25.20727404]
[1751605735422,0.1,152.53,152.49,25.20727404]
[1751605735742,0.1,152.53,152.49,31.45610989]
[1751605735743,6.34883585,152.53,152.49,31.45610989]
[1751605735924,6.34883585,152.53,152.49,25.20727404]
[1751605736124,6.34883585,152.53,152.49,31.45610989]
[1751605737052,0.1,152.53,152.47,8.32728549]
[1751605737222,6.34883585,152.53,152.49,18.64964886]
[1751605739247,6.24883585,152.52,152.49,25.20703428]
[1751605739743,0.1,152.53,152.49,25.20703428]
[1751605739921,6.34883585,152.53,152.49,25.20703428]
[1751605740323,0.1,152.53,152.51,18.64964886]
[1751605741238,0.1,152.53,152.52,25.20616603]
[1751605745560,0.1,152.53,152.52,18.64964886]
[1751605745561,6.34883585,152.53,152.52,18.64964886]
[1751605745739,6.34883585,152.53,152.52,25.20616603]
[1751605746932,0.1,152.53,152.52,25.20616603]
[1751605748459,0.1,152.53,152.52,31.45500188]
[1751605752481,1e-08,152.53,152.52,25.49048917]
[1751605752683,1e-08,152.53,152.52,31.73932502]
[1751605752894,1e-08,152.53,152.52,36.84878423]
[1751605757579,1e-08,152.53,152.52,38.45688423]
[1751605757786,1e-08,152.53,152.52,71.99688423]
[1751605759190,0.1,152.6,152.56,44.64964886]
[1751605759399,0.1,152.6,152.58,18.64964886]
[1751605759969,0.1,152.6,152.57,25.18280785]
[1751605761173,0.1,152.6,152.58,6.55393891]
[1751605762690,0.1,152.6,152.58,12.80277476]
[1751605763272,0.1,152.6,152.59,25.18280785]
[1751605764387,0.1,152.6,152.59,57.73631725]
[1751605767490,0.1,152.62,152.61,50.89848471]
[1751605767675,0.1,152.62,152.61,24.89848471]
[1751605769595,0.1,152.62,152.61,31.45113525]
[1751605771284,0.1,152.62,152.61,57.45113525]
[1751605771972,0.1,152.62,152.61,57.73545839]
[1751605773774,1e-08,152.62,152.61,57.73545839]
[1751605773974,0.1,152.67,152.65,18.64964886]
[1751605774210,0.1,152.67,152.66,24.89848471]
[1751605774681,0.1,152.67,152.66,18.64964886]
[1751605781299,6.34883585,152.67,152.66,18.64964886]
[1751605788793,0.1,152.67,152.66,18.64964886]
[1751605789993,0.1,152.67,152.66,25.20015324]
[1751605790996,0.1,152.67,152.66,31.44898909]
[1751605791716,0.1,152.67,152.66,31.73331223]
[1751605794721,0.1,152.69,152.68,44.64964886]
[1751605794895,0.1,152.69,152.68,50.89848471]
[1751605795097,0.1,152.69,152.68,57.44813102]
[1751605795315,0.1,152.69,152.68,57.73245416]
[1751605795818,0.1,152.69,152.68,91.13245416]
[1751605797123,1.4683006,152.74,152.69,18.933972]
[1751605797325,1.4683006,152.74,152.71,24.89848471]
[1751605798021,1.4683006,152.74,152.73,18.64964886]
[1751605798402,1.4683006,152.74,152.73,30.51602019]
[1751605798626,1.4683006,152.74,152.73,25.18280785]
[1751605798922,1.4683006,152.74,152.73,51.18280785]
[1751605799328,10.78619666,152.81,152.77,25.19543664]
[1751605799529,17.03503251,152.81,152.77,32.13543664]
[1751605799706,17.03503251,152.81,152.77,38.38427249]
[1751605800206,10.78619666,152.81,152.8,6.24883585]
[1751605800396,10.78619666,152.81,152.8,24.89848471]
[1751605800594,10.78619666,152.81,152.8,18.64964886]
[1751605800795,10.78619666,152.81,152.8,25.18280785]
[1751605801022,10.78619666,152.81,152.8,18.933972]
[1751605801231,10.78619666,152.81,152.8,65.14731046]
[1751605801400,10.88619666,152.81,152.8,65.14731046]
[1751605802904,10.88619666,152.81,152.8,31.44298732]
[1751605803231,10.88619666,152.81,152.8,18.64964886]
[1751605803232,17.13503251,152.81,152.8,18.64964886]
[1751605803405,10.88619666,152.81,152.8,18.64964886]
[1751605803603,17.13503251,152.81,152.8,18.64964886]
[1751605803920,10.88619666,152.81,152.8,18.64964886]
[1751605804223,10.88619666,152.81,152.8,31.44298732]
[1751605805161,10.88619666,152.81,152.8,25.19415147]
[1751605805428,10.88619666,152.81,152.8,18.64964886]
[1751605805720,10.88619666,152.81,152.8,25.19415147]
[1751605805927,10.88619666,152.81,152.8,18.64964886]
[1751605806425,10.88619666,152.81,152.8,57.44298732]
[1751605806727,10.88619666,152.81,152.8,31.72731046]
[1751605807026,10.88619666,152.81,152.8,37.97614631]
[1751605807213,10.88619666,152.81,152.8,31.72731046]
[1751605808027,10.88619666,152.81,152.8,57.72731046]
[1751605808205,10.88619666,152.81,152.8,51.19415147]
[1751605808408,10.88619666,152.81,152.8,57.44298732]
[1751605810215,10.88619666,152.81,152.8,64.68731046]
[1751605810526,6.5304,152.88,152.84,18.64964886]
[1751605810736,12.77923585,152.88,152.84,24.89848471]
[1751605811416,6.24883585,152.88,152.84,24.89848471]
[1751605811737,6.3601,152.92,152.87,6.24883585]
[1751605812030,1.5465,152.94,152.9,18.64964886]
[1751605812214,1.5465,152.94,152.9,25.18983065]
[1751605812416,7.79533585,152.94,152.9,31.4386665]
[1751605812622,6.24883585,152.92,152.9,18.64964886]
[1751605813021,6.24883585,152.91,152.9,18.64964886]
[1751605813228,6.24883585,152.91,152.88,25.19062022]
[1751605813733,8.08508988,152.94,152.89,18.64964886]
[1751605813931,6.3768,152.96,152.92,18.64964886]
[1751605813932,6.24883585,152.96,152.92,18.64964886]
[1751605814133,6.24883585,152.95,152.92,18.64964886]
[1751605814432,6.24883585,152.96,152.92,25.18886162]
[1751605814636,6.24883585,152.96,152.92,22.68886162]
[1751605815024,6.24883585,152.93,152.9,6.54009355]
[1751605815338,6.24883585,152.94,152.9,12.7889294]
[1751605815513,1.5136,152.98,152.92,6.24883585]
[1751605815714,6.24883585,152.98,152.94,6.24883585]
[1751605815933,6.24883585,152.98,152.94,13.18883585]
[1751605816324,6.24883585,152.98,152.95,6.53808434]
[1751605816528,6.24883585,152.98,152.96,18.64964886]